[Event "*** SCC Grand Prix: Titled Tuesday Blitz"]
[Site "Chess.com"]
[Date "2020.09.08"]
[Round "6"]
[White "LawrenceTrent"]
[Black "Kazan28"]
[Result "0-1"]
[WhiteElo "2522"]
[BlackElo "2269"]
[TimeControl "180+1"]
[EndTime "11:08:39 PDT"]
[Termination "Kazan28 won by checkmate"]

1. d4 {[%clk 0:03:00]} 1... Nf6 {[%clk 0:02:57.8]} 2. Nc3 {[%clk 0:03:00.9]}
2... g6 {[%clk 0:02:50.5]} 3. e4 {[%clk 0:03:00.2]} 3... d6 {[%clk 0:02:50.4]}
4. Bg5 {[%clk 0:02:57.3]} 4... c6 {[%clk 0:02:46]} 5. Qd2 {[%clk 0:02:53.1]}
5... b5 {[%clk 0:02:45.8]} 6. f3 {[%clk 0:02:52.2]} 6... Nbd7 {[%clk 0:02:38.3]}
7. h4 {[%clk 0:02:50.2]} 7... h6 {[%clk 0:02:22.5]} 8. Be3 {[%clk 0:02:49.4]}
8... b4 {[%clk 0:02:19.2]} 9. Nce2 {[%clk 0:02:49.2]} 9... a5 {[%clk 0:02:05.7]}
10. g4 {[%clk 0:02:48.1]} 10... e5 {[%clk 0:02:01.2]} 11. O-O-O {[%clk
0:02:46.1]} 11... Qc7 {[%clk 0:01:50]} 12. dxe5 {[%clk 0:02:41.2]} 12... dxe5
{[%clk 0:01:44.2]} 13. Ng3 {[%clk 0:02:39.4]} 13... Bc5 {[%clk 0:01:33.8]} 14.
Bc4 {[%clk 0:02:36.7]} 14... Bxe3 {[%clk 0:01:25.7]} 15. Qxe3 {[%clk 0:02:37.6]}
15... Nb6 {[%clk 0:01:25.3]} 16. Bd3 {[%clk 0:02:24.6]} 16... Be6 {[%clk
0:01:11.9]} 17. Kb1 {[%clk 0:02:16.6]} 17... O-O-O {[%clk 0:01:08]} 18. N1e2
{[%clk 0:02:16.6]} 18... c5 {[%clk 0:01:00.2]} 19. Ba6+ {[%clk 0:02:10.6]} 19...
Kb8 {[%clk 0:00:58.9]} 20. Nc1 {[%clk 0:02:11.5]} 20... c4 {[%clk 0:00:49.8]}
21. g5 {[%clk 0:02:09.2]} 21... hxg5 {[%clk 0:00:46.5]} 22. hxg5 {[%clk
0:02:10.1]} 22... Rxh1 {[%clk 0:00:46.2]} 23. Rxh1 {[%clk 0:02:08.6]} 23... Nfd7
{[%clk 0:00:44.7]} 24. b3 {[%clk 0:02:04.3]} 24... Qc5 {[%clk 0:00:38]} 25. Qxc5
{[%clk 0:01:51.6]} 25... Nxc5 {[%clk 0:00:38.9]} 26. Bb5 {[%clk 0:01:51.2]}
26... Rd2 {[%clk 0:00:34.4]} 27. Nge2 {[%clk 0:01:48]} 27... a4 {[%clk
0:00:30.7]} 28. a3 {[%clk 0:01:31.7]} 28... axb3 {[%clk 0:00:28.3]} 29. cxb3
{[%clk 0:01:31.7]} 29... Nxb3 {[%clk 0:00:22.2]} 30. Nxb3 {[%clk 0:01:29.4]}
30... cxb3 {[%clk 0:00:23.1]} 31. axb4 {[%clk 0:01:29.4]} 31... Bc4 {[%clk
0:00:22.5]} 32. Nc3 {[%clk 0:01:25.9]} 32... Rc2 {[%clk 0:00:14.1]} 33. Rc1
{[%clk 0:01:03.3]} 33... Rxc3 {[%clk 0:00:12.5]} 34. Rxc3 {[%clk 0:01:03.4]}
34... Bxb5 {[%clk 0:00:12.9]} 35. Rxb3 {[%clk 0:01:03.9]} 35... Kc7 {[%clk
0:00:13]} 36. f4 {[%clk 0:01:03.1]} 36... exf4 {[%clk 0:00:11.4]} 37. Rf3 {[%clk
0:01:03.7]} 37... Nd7 {[%clk 0:00:11.5]} 38. Rxf4 {[%clk 0:01:03.2]} 38... Ne5
{[%clk 0:00:11.8]} 39. Rh4 {[%clk 0:01:01.8]} 39... Kd6 {[%clk 0:00:11.9]} 40.
Rh8 {[%clk 0:01:01.3]} 40... Bd3+ {[%clk 0:00:12.3]} 41. Kb2 {[%clk 0:01:01.2]}
41... Bxe4 {[%clk 0:00:13.2]} 42. Kc3 {[%clk 0:01:01.3]} 42... Ke6 {[%clk
0:00:13.7]} 43. b5 {[%clk 0:01:00.9]} 43... Kf5 {[%clk 0:00:13.1]} 44. b6 {[%clk
0:00:59.3]} 44... Kxg5 {[%clk 0:00:13.1]} 45. Re8 {[%clk 0:00:56.6]} 45... Kf4
{[%clk 0:00:12]} 46. Kd4 {[%clk 0:00:55.2]} 46... f6 {[%clk 0:00:12.2]} 47. Re6
{[%clk 0:00:53.9]} 47... Kf5 {[%clk 0:00:12.2]} 48. Rd6 {[%clk 0:00:49]} 48...
g5 {[%clk 0:00:12.2]} 49. Kc3 {[%clk 0:00:42.4]} 49... g4 {[%clk 0:00:12.1]} 50.
Rd8 {[%clk 0:00:39.3]} 50... g3 {[%clk 0:00:12.1]} 51. Rd1 {[%clk 0:00:36.9]}
51... g2 {[%clk 0:00:12]} 52. Kd4 {[%clk 0:00:36.4]} 52... Kf4 {[%clk
0:00:11.4]} 53. Kc5 {[%clk 0:00:33.5]} 53... Ke3 {[%clk 0:00:10.1]} 54. Re1+
{[%clk 0:00:32.4]} 54... Kf2 {[%clk 0:00:09]} 55. Rxe4 {[%clk 0:00:32.4]} 55...
g1=Q {[%clk 0:00:08.7]} 56. b7 {[%clk 0:00:32.8]} 56... Kf3+ {[%clk 0:00:08.8]}
57. Rd4 {[%clk 0:00:31.5]} 57... Qb1 {[%clk 0:00:05.2]} 58. Rb4 {[%clk
0:00:30.7]} 58... Qc2+ {[%clk 0:00:05.1]} 59. Kd6 {[%clk 0:00:30.9]} 59... Qd3+
{[%clk 0:00:05]} 60. Ke7 {[%clk 0:00:31.1]} 60... Qd7+ {[%clk 0:00:05.1]} 61.
Kxf6 {[%clk 0:00:31.7]} 61... Qf7+ {[%clk 0:00:06]} 62. Kxe5 {[%clk 0:00:31.9]}
62... Qe7+ {[%clk 0:00:06.5]} 63. Kd5 {[%clk 0:00:31.9]} 63... Qxb4 {[%clk
0:00:07.4]} 64. Kc6 {[%clk 0:00:32.8]} 64... Ke4 {[%clk 0:00:07.5]} 65. Kc7
{[%clk 0:00:33.3]} 65... Qc5+ {[%clk 0:00:07.8]} 66. Kb8 {[%clk 0:00:33.8]}
66... Kd5 {[%clk 0:00:07.5]} 67. Ka8 {[%clk 0:00:34.4]} 67... Qa5+ {[%clk
0:00:07.6]} 68. Kb8 {[%clk 0:00:35]} 68... Kc6 {[%clk 0:00:07.9]} 69. Kc8 {[%clk
0:00:35.4]} 69... Qc7# {[%clk 0:00:08.4]} 0-1

[Event "*** SCC Grand Prix: Titled Tuesday Blitz"]
[Site "Chess.com"]
[Date "2020.09.08"]
[Round "6"]
[White "chenxiaoyuer"]
[Black "Mazetovic"]
[Result "0-1"]
[WhiteElo "2466"]
[BlackElo "2640"]
[TimeControl "180+1"]
[EndTime "11:08:42 PDT"]
[Termination "Mazetovic won by checkmate"]

1. e4 {[%clk 0:03:00.9]} 1... c5 {[%clk 0:02:59.4]} 2. Nf3 {[%clk 0:03:00.6]}
2... Nc6 {[%clk 0:02:59.5]} 3. d4 {[%clk 0:03:00.7]} 3... cxd4 {[%clk
0:02:59.7]} 4. Nxd4 {[%clk 0:02:59.4]} 4... g6 {[%clk 0:03:00]} 5. Nc3 {[%clk
0:02:58.4]} 5... Bg7 {[%clk 0:02:59.9]} 6. Nb3 {[%clk 0:02:59]} 6... Nf6 {[%clk
0:02:59.8]} 7. Be2 {[%clk 0:02:58.2]} 7... O-O {[%clk 0:02:59.4]} 8. O-O {[%clk
0:02:58.7]} 8... d6 {[%clk 0:02:59.8]} 9. Bg5 {[%clk 0:02:58.6]} 9... a6 {[%clk
0:02:59]} 10. a4 {[%clk 0:02:57.9]} 10... Be6 {[%clk 0:02:47.8]} 11. Kh1 {[%clk
0:02:57.5]} 11... Nd7 {[%clk 0:02:44.7]} 12. f4 {[%clk 0:02:51.7]} 12... Bxb3
{[%clk 0:02:36.2]} 13. cxb3 {[%clk 0:02:51.3]} 13... Nc5 {[%clk 0:02:36.7]} 14.
Bc4 {[%clk 0:02:45.4]} 14... h6 {[%clk 0:01:50.4]} 15. Bh4 {[%clk 0:02:43.5]}
15... Kh8 {[%clk 0:01:49.1]} 16. Re1 {[%clk 0:02:02.7]} 16... Rc8 {[%clk
0:01:40.6]} 17. Bf2 {[%clk 0:01:48.3]} 17... Nb4 {[%clk 0:01:30.7]} 18. Nd5
{[%clk 0:01:38.7]} 18... Nxd5 {[%clk 0:01:27.1]} 19. exd5 {[%clk 0:01:25.7]}
19... Bxb2 {[%clk 0:01:21.2]} 20. Ra2 {[%clk 0:01:23]} 20... Bf6 {[%clk
0:01:20.7]} 21. Rae2 {[%clk 0:01:17.5]} 21... Nxa4 {[%clk 0:01:14.7]} 22. Bd4
{[%clk 0:01:13]} 22... Nb6 {[%clk 0:01:06]} 23. Rxe7 {[%clk 0:01:10.5]} 23...
Bxd4 {[%clk 0:00:53.2]} 24. Qxd4+ {[%clk 0:01:11.4]} 24... Kg8 {[%clk
0:00:51.2]} 25. Rxb7 {[%clk 0:00:51.7]} 25... Nxc4 {[%clk 0:00:45.9]} 26. bxc4
{[%clk 0:00:50.8]} 26... Re8 {[%clk 0:00:37.6]} 27. Rxe8+ {[%clk 0:00:47.7]}
27... Qxe8 {[%clk 0:00:37.2]} 28. h3 {[%clk 0:00:47.2]} 28... a5 {[%clk
0:00:31.3]} 29. Qf6 {[%clk 0:00:44.8]} 29... Rxc4 {[%clk 0:00:13.3]} 30. Qxd6
{[%clk 0:00:44.4]} 30... Rc8 {[%clk 0:00:13.6]} 31. Ra7 {[%clk 0:00:43.2]} 31...
Ra8 {[%clk 0:00:13.1]} 32. Rxa8 {[%clk 0:00:38.1]} 32... Qxa8 {[%clk 0:00:12.8]}
33. Qc6 {[%clk 0:00:37.4]} 33... Qd8 {[%clk 0:00:12.1]} 34. d6 {[%clk
0:00:37.2]} 34... Kf8 {[%clk 0:00:11.9]} 35. Qc7 {[%clk 0:00:32.5]} 35... Ke8
{[%clk 0:00:10.5]} 36. Qc6+ {[%clk 0:00:31.7]} 36... Qd7 {[%clk 0:00:09.6]} 37.
Qa8+ {[%clk 0:00:26.5]} 37... Qd8 {[%clk 0:00:09.9]} 38. Qe4+ {[%clk 0:00:24.4]}
38... Kf8 {[%clk 0:00:09.8]} 39. Qc6 {[%clk 0:00:24]} 39... h5 {[%clk
0:00:09.5]} 40. g3 {[%clk 0:00:22.8]} 40... a4 {[%clk 0:00:07.4]} 41. Qxa4
{[%clk 0:00:22.3]} 41... Qxd6 {[%clk 0:00:07.7]} 42. Qe4 {[%clk 0:00:21.8]}
42... Qd2 {[%clk 0:00:07.5]} 43. Qg2 {[%clk 0:00:21.9]} 43... Qe1+ {[%clk
0:00:07.4]} 44. Qg1 {[%clk 0:00:21.3]} 44... Qe2 {[%clk 0:00:06.3]} 45. Qg2
{[%clk 0:00:21.3]} 45... Qe3 {[%clk 0:00:06.8]} 46. Kh2 {[%clk 0:00:20.8]} 46...
h4 {[%clk 0:00:07.2]} 47. gxh4 {[%clk 0:00:17.5]} 47... Qxf4+ {[%clk 0:00:07.4]}
48. Qg3 {[%clk 0:00:17.7]} 48... Qxg3+ {[%clk 0:00:07]} 49. Kxg3 {[%clk
0:00:18]} 49... Kg7 {[%clk 0:00:07.2]} 50. Kf4 {[%clk 0:00:17.3]} 50... Kh6
{[%clk 0:00:07.6]} 51. Kg4 {[%clk 0:00:16.3]} 51... f6 {[%clk 0:00:06.9]} 52.
Kf3 {[%clk 0:00:13.2]} 52... Kh5 {[%clk 0:00:07]} 53. Kg3 {[%clk 0:00:12.2]}
53... f5 {[%clk 0:00:07.5]} 54. Kh2 {[%clk 0:00:06.6]} 54... Kxh4 {[%clk
0:00:07.8]} 55. Kg2 {[%clk 0:00:06.5]} 55... g5 {[%clk 0:00:07.6]} 56. Kh2
{[%clk 0:00:07.1]} 56... f4 {[%clk 0:00:07.8]} 57. Kg2 {[%clk 0:00:07.5]} 57...
f3+ {[%clk 0:00:08.2]} 58. Kxf3 {[%clk 0:00:06.9]} 58... Kxh3 {[%clk 0:00:08.3]}
59. Kf2 {[%clk 0:00:07.8]} 59... g4 {[%clk 0:00:07.2]} 60. Kg1 {[%clk
0:00:06.2]} 60... Kg3 {[%clk 0:00:07.6]} 61. Kh1 {[%clk 0:00:03.8]} 61... Kf2
{[%clk 0:00:08]} 62. Kh2 {[%clk 0:00:04.7]} 62... g3+ {[%clk 0:00:08.5]} 63. Kh3
{[%clk 0:00:05.4]} 63... g2 {[%clk 0:00:09]} 64. Kh4 {[%clk 0:00:06.3]} 64...
g1=Q {[%clk 0:00:09.5]} 65. Kh5 {[%clk 0:00:07.2]} 65... Kf3 {[%clk 0:00:09.9]}
66. Kh6 {[%clk 0:00:07]} 66... Kf4 {[%clk 0:00:10.4]} 67. Kh5 {[%clk 0:00:07.7]}
67... Qg5# {[%clk 0:00:10.1]} 0-1

[Event "*** SCC Grand Prix: Titled Tuesday Blitz"]
[Site "Chess.com"]
[Date "2020.09.08"]
[Round "6"]
[White "crossingthestreet"]
[Black "13MiRacLe"]
[Result "0-1"]
[WhiteElo "2438"]
[BlackElo "2601"]
[TimeControl "180+1"]
[EndTime "11:08:42 PDT"]
[Termination "13MiRacLe won by checkmate"]

1. c4 {[%clk 0:03:00.9]} 1... g6 {[%clk 0:02:59.5]} 2. d4 {[%clk 0:03:00.2]}
2... Nf6 {[%clk 0:02:58.8]} 3. Nc3 {[%clk 0:02:59.6]} 3... d5 {[%clk 0:02:59.4]}
4. Nf3 {[%clk 0:02:58.5]} 4... Bg7 {[%clk 0:02:59.1]} 5. Qb3 {[%clk 0:02:58.6]}
5... dxc4 {[%clk 0:02:58.8]} 6. Qxc4 {[%clk 0:02:59.5]} 6... O-O {[%clk
0:02:59.4]} 7. e4 {[%clk 0:02:59.6]} 7... a6 {[%clk 0:03:00.1]} 8. Be2 {[%clk
0:02:58.3]} 8... b5 {[%clk 0:03:00.5]} 9. Qb3 {[%clk 0:02:58.3]} 9... c5 {[%clk
0:03:00.9]} 10. dxc5 {[%clk 0:02:56.7]} 10... Nbd7 {[%clk 0:03:01.5]} 11. Be3
{[%clk 0:02:36.9]} 11... Ng4 {[%clk 0:03:00.8]} 12. Bg5 {[%clk 0:02:25.7]} 12...
h6 {[%clk 0:02:30.6]} 13. Bh4 {[%clk 0:02:24]} 13... g5 {[%clk 0:02:29.6]} 14.
Bg3 {[%clk 0:02:24.1]} 14... Nxc5 {[%clk 0:02:29.4]} 15. Qc2 {[%clk 0:02:23.9]}
15... Be6 {[%clk 0:02:20.4]} 16. Rd1 {[%clk 0:01:58.8]} 16... Qa5 {[%clk
0:02:19.2]} 17. O-O {[%clk 0:01:56]} 17... Rac8 {[%clk 0:02:10.6]} 18. Nd5
{[%clk 0:01:35.8]} 18... Bxd5 {[%clk 0:02:05.4]} 19. exd5 {[%clk 0:01:31.9]}
19... Qxa2 {[%clk 0:01:54.6]} 20. Nxg5 {[%clk 0:01:31.9]} 20... Nf6 {[%clk
0:01:41.6]} 21. Nf3 {[%clk 0:01:18]} 21... Nce4 {[%clk 0:01:41.6]} 22. Qd3
{[%clk 0:00:59.4]} 22... Nxg3 {[%clk 0:01:38.3]} 23. fxg3 {[%clk 0:00:55.2]}
23... Qxb2 {[%clk 0:01:38.3]} 24. Nh4 {[%clk 0:00:42.1]} 24... Rc3 {[%clk
0:01:33.5]} 25. Qd4 {[%clk 0:00:40.4]} 25... Rc2 {[%clk 0:01:07.2]} 26. Qxb2
{[%clk 0:00:25.7]} 26... Rxb2 {[%clk 0:01:08.1]} 27. Bf3 {[%clk 0:00:24.1]}
27... e6 {[%clk 0:01:03.1]} 28. dxe6 {[%clk 0:00:20.8]} 28... fxe6 {[%clk
0:01:04]} 29. Rd6 {[%clk 0:00:20.8]} 29... a5 {[%clk 0:00:51.7]} 30. Rxe6 {[%clk
0:00:21]} 30... Ng4 {[%clk 0:00:46.2]} 31. h3 {[%clk 0:00:14.3]} 31... Bd4+
{[%clk 0:00:40.1]} 32. Kh1 {[%clk 0:00:14.8]} 32... Ne3 {[%clk 0:00:33.1]} 33.
Re1 {[%clk 0:00:15.1]} 33... Nf5 {[%clk 0:00:14.4]} 34. Nxf5 {[%clk 0:00:12.4]}
34... Rxf5 {[%clk 0:00:15.3]} 35. Rxh6 {[%clk 0:00:12.5]} 35... Re5 {[%clk
0:00:11.1]} 36. Rd1 {[%clk 0:00:12.4]} 36... Rb4 {[%clk 0:00:10.2]} 37. Rd6
{[%clk 0:00:11.8]} 37... Bf2 {[%clk 0:00:08.4]} 38. Rc6 {[%clk 0:00:11.2]} 38...
Rd4 {[%clk 0:00:04.8]} 39. Rxd4 {[%clk 0:00:08.7]} 39... Bxd4 {[%clk 0:00:05.7]}
40. Kh2 {[%clk 0:00:09.2]} 40... Re1 {[%clk 0:00:04.8]} 41. g4 {[%clk
0:00:08.7]} 41... Be5+ {[%clk 0:00:03.7]} 42. g3 {[%clk 0:00:08.5]} 42... b4
{[%clk 0:00:02.3]} 43. Rc5 {[%clk 0:00:08.1]} 43... Bc3 {[%clk 0:00:02.4]} 44.
Rxa5 {[%clk 0:00:08.2]} 44... b3 {[%clk 0:00:03]} 45. Rb5 {[%clk 0:00:08.2]}
45... b2 {[%clk 0:00:03.3]} 46. Bd5+ {[%clk 0:00:07.9]} 46... Kg7 {[%clk
0:00:02.9]} 47. Ba2 {[%clk 0:00:08.2]} 47... Ra1 {[%clk 0:00:03.1]} 48. Rb7+
{[%clk 0:00:08.5]} 48... Kf6 {[%clk 0:00:03.2]} 49. g5+ {[%clk 0:00:07.7]} 49...
Kxg5 {[%clk 0:00:03.4]} 50. h4+ {[%clk 0:00:08.3]} 50... Kf6 {[%clk 0:00:04.1]}
51. Rb6+ {[%clk 0:00:08]} 51... Ke5 {[%clk 0:00:04.6]} 52. Rb5+ {[%clk
0:00:02.9]} 52... Kd4 {[%clk 0:00:05]} 53. Bb1 {[%clk 0:00:02]} 53... Rxb1
{[%clk 0:00:04.9]} 54. h5 {[%clk 0:00:02.4]} 54... Ra1 {[%clk 0:00:05.1]} 55. h6
{[%clk 0:00:02.7]} 55... b1=Q {[%clk 0:00:05.3]} 56. Rb2 {[%clk 0:00:03.6]}
56... Qxb2+ {[%clk 0:00:05.5]} 57. Kh3 {[%clk 0:00:04.2]} 57... Rh1+ {[%clk
0:00:05.9]} 58. Kg4 {[%clk 0:00:04.5]} 58... Rxh6 {[%clk 0:00:06.6]} 59. Kf3
{[%clk 0:00:05.3]} 59... Qc2 {[%clk 0:00:05.8]} 60. g4 {[%clk 0:00:06.2]} 60...
Qd3+ {[%clk 0:00:06.2]} 61. Kg2 {[%clk 0:00:06.4]} 61... Qh3+ {[%clk 0:00:05.4]}
62. Kf2 {[%clk 0:00:06.8]} 62... Rf6+ {[%clk 0:00:05.3]} 63. Ke2 {[%clk
0:00:06.4]} 63... Qf1# {[%clk 0:00:05.6]} 0-1

[Event "*** SCC Grand Prix: Titled Tuesday Blitz"]
[Site "Chess.com"]
[Date "2020.09.08"]
[Round "6"]
[White "Rozum_Ivan"]
[Black "AnishOnYoutube"]
[Result "1/2-1/2"]
[WhiteElo "2719"]
[BlackElo "2938"]
[TimeControl "180+1"]
[EndTime "11:08:43 PDT"]
[Termination "Game drawn by repetition"]

1. Nf3 {[%clk 0:03:00.9]} 1... c5 {[%clk 0:02:57.5]} 2. e3 {[%clk 0:03:00.2]}
2... Nf6 {[%clk 0:02:55.2]} 3. d4 {[%clk 0:03:00.6]} 3... g6 {[%clk 0:02:50.1]}
4. Bd3 {[%clk 0:02:56.4]} 4... Bg7 {[%clk 0:02:50.2]} 5. O-O {[%clk 0:02:57]}
5... O-O {[%clk 0:02:50.5]} 6. Nbd2 {[%clk 0:02:56.5]} 6... d6 {[%clk
0:02:39.6]} 7. c3 {[%clk 0:02:54]} 7... b6 {[%clk 0:02:36.1]} 8. e4 {[%clk
0:02:52.3]} 8... cxd4 {[%clk 0:02:29]} 9. cxd4 {[%clk 0:02:53.2]} 9... Nc6
{[%clk 0:02:29.4]} 10. a3 {[%clk 0:02:51.2]} 10... Nh5 {[%clk 0:02:01.2]} 11.
Nb3 {[%clk 0:02:46.7]} 11... Bg4 {[%clk 0:02:01.5]} 12. Be2 {[%clk 0:02:45.8]}
12... Nf6 {[%clk 0:01:53.1]} 13. h3 {[%clk 0:02:44.9]} 13... Bd7 {[%clk
0:01:50.5]} 14. Bd3 {[%clk 0:02:36.7]} 14... e5 {[%clk 0:01:38.3]} 15. Re1
{[%clk 0:02:32.5]} 15... Re8 {[%clk 0:01:31.7]} 16. Bd2 {[%clk 0:02:20.6]} 16...
exd4 {[%clk 0:01:08.5]} 17. Nbxd4 {[%clk 0:02:21.5]} 17... Ne5 {[%clk
0:00:57.7]} 18. Ba6 {[%clk 0:02:12.1]} 18... Bc8 {[%clk 0:00:36.5]} 19. Bb5
{[%clk 0:01:39.5]} 19... Bd7 {[%clk 0:00:36.8]} 20. Bf1 {[%clk 0:01:24.5]} 20...
d5 {[%clk 0:00:32.7]} 21. exd5 {[%clk 0:01:16.1]} 21... Nxd5 {[%clk 0:00:33]}
22. Qb3 {[%clk 0:01:03.9]} 22... Nxf3+ {[%clk 0:00:30.1]} 23. Nxf3 {[%clk
0:01:04.8]} 23... Nc7 {[%clk 0:00:25.8]} 24. Ng5 {[%clk 0:00:56.8]} 24... Ne6
{[%clk 0:00:24.7]} 25. h4 {[%clk 0:00:43]} 25... h6 {[%clk 0:00:21.8]} 26. Nf3
{[%clk 0:00:41.8]} 26... Bc6 {[%clk 0:00:20.8]} 27. Rad1 {[%clk 0:00:33.6]}
27... Bxf3 {[%clk 0:00:20.9]} 28. Qxf3 {[%clk 0:00:34.5]} 28... Qxh4 {[%clk
0:00:21.3]} 29. g3 {[%clk 0:00:25.4]} 29... Qf6 {[%clk 0:00:20.7]} 30. Qxf6
{[%clk 0:00:21.7]} 30... Bxf6 {[%clk 0:00:21.6]} 31. Bxh6 {[%clk 0:00:21.5]}
31... Bxb2 {[%clk 0:00:21.8]} 32. a4 {[%clk 0:00:20.8]} 32... Bg7 {[%clk
0:00:21.9]} 33. Be3 {[%clk 0:00:20.4]} 33... Rad8 {[%clk 0:00:16.9]} 34. Bb5
{[%clk 0:00:20.4]} 34... Rxd1 {[%clk 0:00:16.8]} 35. Rxd1 {[%clk 0:00:21.3]}
35... Rd8 {[%clk 0:00:17.4]} 36. Rc1 {[%clk 0:00:21.9]} 36... Bd4 {[%clk
0:00:16.4]} 37. Bxd4 {[%clk 0:00:17.3]} 37... Nxd4 {[%clk 0:00:15.7]} 38. Rc7
{[%clk 0:00:17.4]} 38... Nxb5 {[%clk 0:00:10.6]} 39. axb5 {[%clk 0:00:18.3]}
39... Rd5 {[%clk 0:00:10.7]} 40. Rxa7 {[%clk 0:00:18.6]} 40... Rxb5 {[%clk
0:00:11.3]} 41. Rb7 {[%clk 0:00:16.8]} 41... Kg7 {[%clk 0:00:11.9]} 42. Kg2
{[%clk 0:00:17.1]} 42... Kf6 {[%clk 0:00:12.5]} 43. f4 {[%clk 0:00:17.5]} 43...
Ke6 {[%clk 0:00:12.2]} 44. g4 {[%clk 0:00:17.7]} 44... Rb3 {[%clk 0:00:09]} 45.
Kf2 {[%clk 0:00:17.6]} 45... Kf6 {[%clk 0:00:07.2]} 46. Kg2 {[%clk 0:00:17.8]}
46... Ke6 {[%clk 0:00:06.5]} 47. Kf2 {[%clk 0:00:18.2]} 47... Rb4 {[%clk
0:00:05.3]} 48. Kf3 {[%clk 0:00:17.9]} 48... Rb5 {[%clk 0:00:05.9]} 49. Rb8
{[%clk 0:00:17.2]} 49... f6 {[%clk 0:00:05.9]} 50. Rg8 {[%clk 0:00:16.6]} 50...
g5 {[%clk 0:00:06]} 51. f5+ {[%clk 0:00:15.5]} 51... Kf7 {[%clk 0:00:04.7]} 52.
Rb8 {[%clk 0:00:15.1]} 52... Rb4 {[%clk 0:00:04.9]} 53. Rb7+ {[%clk 0:00:14.7]}
53... Ke8 {[%clk 0:00:05.5]} 54. Rc7 {[%clk 0:00:13.4]} 54... Rf4+ {[%clk
0:00:04.9]} 55. Kg3 {[%clk 0:00:13.4]} 55... b5 {[%clk 0:00:05]} 56. Rc6 {[%clk
0:00:13.3]} 56... Ke7 {[%clk 0:00:04.9]} 57. Rc7+ {[%clk 0:00:13.1]} 57... Kd6
{[%clk 0:00:04.9]} 58. Rf7 {[%clk 0:00:13.3]} 58... Ke5 {[%clk 0:00:05.2]} 59.
Re7+ {[%clk 0:00:13.8]} 59... Kd5 {[%clk 0:00:05.7]} 60. Rd7+ {[%clk 0:00:12.2]}
60... Ke5 {[%clk 0:00:05.5]} 61. Re7+ {[%clk 0:00:12.4]} 61... Kd5 {[%clk
0:00:06]} 62. Rd7+ {[%clk 0:00:12.3]} 62... Ke5 {[%clk 0:00:05]} 63. Re7+ {[%clk
0:00:12.6]} 1/2-1/2

[Event "*** SCC Grand Prix: Titled Tuesday Blitz"]
[Site "Chess.com"]
[Date "2020.09.08"]
[Round "6"]
[White "indfraeng"]
[Black "ExtremeLearner"]
[Result "1-0"]
[WhiteElo "2346"]
[BlackElo "2428"]
[TimeControl "180+1"]
[EndTime "11:08:43 PDT"]
[Termination "indfraeng won by resignation"]

1. d4 {[%clk 0:03:00.9]} 1... Nf6 {[%clk 0:02:59.7]} 2. c4 {[%clk 0:03:01.2]}
2... g6 {[%clk 0:02:58.7]} 3. g3 {[%clk 0:03:01.4]} 3... Bg7 {[%clk 0:02:58.8]}
4. Bg2 {[%clk 0:03:02]} 4... O-O {[%clk 0:02:59.3]} 5. Nc3 {[%clk 0:03:02.5]}
5... d6 {[%clk 0:02:59.9]} 6. Nf3 {[%clk 0:03:03.1]} 6... c6 {[%clk 0:03:00.4]}
7. O-O {[%clk 0:03:03.7]} 7... Bf5 {[%clk 0:03:01.1]} 8. Ne1 {[%clk 0:02:56.7]}
8... e5 {[%clk 0:02:58.3]} 9. d5 {[%clk 0:02:51.7]} 9... cxd5 {[%clk 0:02:49.2]}
10. cxd5 {[%clk 0:02:50.5]} 10... Na6 {[%clk 0:02:45]} 11. e4 {[%clk 0:02:49]}
11... Bg4 {[%clk 0:02:44.1]} 12. f3 {[%clk 0:02:47.4]} 12... Bd7 {[%clk
0:02:44.2]} 13. Be3 {[%clk 0:02:43]} 13... Nc7 {[%clk 0:02:40.7]} 14. Nd3 {[%clk
0:02:41.4]} 14... b5 {[%clk 0:02:36.2]} 15. Rc1 {[%clk 0:02:28]} 15... a6 {[%clk
0:02:06.7]} 16. Bb6 {[%clk 0:02:24.7]} 16... Qb8 {[%clk 0:01:59.6]} 17. Ba5
{[%clk 0:02:23.8]} 17... Rc8 {[%clk 0:01:56.1]} 18. Nb4 {[%clk 0:02:20.2]} 18...
Nce8 {[%clk 0:01:51.1]} 19. Qd2 {[%clk 0:02:14.9]} 19... h5 {[%clk 0:01:43.6]}
20. Ne2 {[%clk 0:02:13.5]} 20... h4 {[%clk 0:01:31.8]} 21. g4 {[%clk 0:02:09.9]}
21... Qa7+ {[%clk 0:01:18.6]} 22. Kh1 {[%clk 0:02:07.6]} 22... Rxc1 {[%clk
0:01:09.4]} 23. Rxc1 {[%clk 0:02:05.2]} 23... Bxg4 {[%clk 0:01:07.7]} 24. Nc6
{[%clk 0:01:56.9]} 24... Qd7 {[%clk 0:00:45.6]} 25. fxg4 {[%clk 0:01:50.9]}
25... Nxg4 {[%clk 0:00:46.5]} 26. Rf1 {[%clk 0:01:33.4]} 26... Bh6 {[%clk
0:00:36]} 27. Qd3 {[%clk 0:01:33.2]} 27... Ng7 {[%clk 0:00:26.4]} 28. Bh3 {[%clk
0:01:25.2]} 28... f5 {[%clk 0:00:23.5]} 29. exf5 {[%clk 0:01:15.8]} 29... gxf5
{[%clk 0:00:24.4]} 30. Rxf5 {[%clk 0:01:10]} 30... Qxf5 {[%clk 0:00:21.5]} 31.
Ne7+ {[%clk 0:01:09.2]} 31... Kh8 {[%clk 0:00:14.2]} 32. Qxf5 {[%clk 0:00:56.3]}
32... Nxf5 {[%clk 0:00:13.6]} 33. Nxf5 {[%clk 0:00:57.2]} 33... Nf2+ {[%clk
0:00:10.5]} 34. Kg2 {[%clk 0:00:57]} 34... Nxh3 {[%clk 0:00:10.4]} 35. Nxh6
{[%clk 0:00:54.8]} 35... Ng5 {[%clk 0:00:06.4]} 36. Nf5 {[%clk 0:00:54.8]} 36...
Nf7 {[%clk 0:00:05.9]} 37. Bc3 {[%clk 0:00:51.2]} 37... Rc8 {[%clk 0:00:05.9]}
38. Nxd6 {[%clk 0:00:35.9]} 38... Rg8+ {[%clk 0:00:03.4]} 39. Kf2 {[%clk
0:00:33.1]} 39... Nxd6 {[%clk 0:00:03.1]} 40. Bxe5+ {[%clk 0:00:33.4]} 40... Kh7
{[%clk 0:00:03.9]} 41. Bxd6 {[%clk 0:00:33.5]} 41... Rd8 {[%clk 0:00:04.5]} 42.
Be7 {[%clk 0:00:30.7]} 42... Rxd5 {[%clk 0:00:04.3]} 43. Bxh4 {[%clk 0:00:31.4]}
43... Rd2 {[%clk 0:00:04.7]} 44. Bf6 {[%clk 0:00:31.6]} 44... Kg6 {[%clk
0:00:04.9]} 45. Bc3 {[%clk 0:00:31.5]} 45... Rd8 {[%clk 0:00:04.6]} 46. h4
{[%clk 0:00:28.5]} 46... Kh5 {[%clk 0:00:04.3]} 47. Ng3+ {[%clk 0:00:22.6]}
47... Kg4 {[%clk 0:00:02.5]} 48. h5 {[%clk 0:00:20.4]} 48... Rf8+ {[%clk
0:00:02.9]} 49. Kg2 {[%clk 0:00:20.1]} 49... Rf3 {[%clk 0:00:02]} 50. Nf1 {[%clk
0:00:15.5]} 50... Rd3 {[%clk 0:00:02.1]} 51. h6 {[%clk 0:00:14.7]} 51... Kh5
{[%clk 0:00:02.4]} 52. h7 {[%clk 0:00:14.7]} 52... Rd8 {[%clk 0:00:02.7]} 53.
h8=Q+ {[%clk 0:00:14.9]} 53... Rxh8 {[%clk 0:00:03.6]} 54. Bxh8 {[%clk
0:00:15.3]} 54... Kg6 {[%clk 0:00:04]} 55. Ne3 {[%clk 0:00:15.9]} 55... Kf7
{[%clk 0:00:03.6]} 56. Nd5 {[%clk 0:00:15.5]} 56... Ke8 {[%clk 0:00:03.2]} 57.
Nc7+ {[%clk 0:00:15.9]} 57... Kd7 {[%clk 0:00:04.1]} 58. Nxa6 {[%clk 0:00:16.8]}
58... Kc6 {[%clk 0:00:05]} 59. Bd4 {[%clk 0:00:15.6]} 59... Kd5 {[%clk
0:00:04.6]} 60. Nc7+ {[%clk 0:00:15.8]} 60... Kc4 {[%clk 0:00:05.5]} 61. Nxb5
{[%clk 0:00:15.8]} 61... Kxb5 {[%clk 0:00:05.9]} 62. Bc3 {[%clk 0:00:16.3]}
62... Ka4 {[%clk 0:00:06]} 63. Kf3 {[%clk 0:00:16.6]} 1-0